[Event "*** Titled Tuesday Blitz"]
[Site "Chess.com"]
[Date "2020.04.14"]
[Round "3"]
[White "Bigfish1995"]
[Black "Sid_98"]
[Result "1-0"]
[WhiteElo "3097"]
[BlackElo "2711"]
[TimeControl "180+1"]
[EndTime "10:29:26 PDT"]
[Termination "Bigfish1995 won on time"]

1. d4 {[%clk 0:03:00.9]} 1... d5 {[%clk 0:02:58.4]} 2. c4 {[%clk 0:03:00.1]}
2... c6 {[%clk 0:02:58.8]} 3. Nf3 {[%clk 0:03:00.2]} 3... Nf6 {[%clk 0:02:57.7]}
4. Nbd2 {[%clk 0:02:58.3]} 4... e6 {[%clk 0:02:52]} 5. g3 {[%clk 0:02:57.6]}
5... Nbd7 {[%clk 0:02:45.5]} 6. Bg2 {[%clk 0:02:57.7]} 6... Be7 {[%clk 0:02:46]}
7. O-O {[%clk 0:02:57.7]} 7... O-O {[%clk 0:02:46.4]} 8. b3 {[%clk 0:02:57.9]}
8... b6 {[%clk 0:02:46.4]} 9. Bb2 {[%clk 0:02:57.5]} 9... Bb7 {[%clk 0:02:44.1]}
10. Qc2 {[%clk 0:02:56.5]} 10... c5 {[%clk 0:02:42.3]} 11. Rfd1 {[%clk
0:02:52.7]} 11... Rc8 {[%clk 0:02:41.2]} 12. Rac1 {[%clk 0:02:52.3]} 12... Qc7
{[%clk 0:02:35.3]} 13. cxd5 {[%clk 0:02:45.5]} 13... Nxd5 {[%clk 0:02:26.1]} 14.
e4 {[%clk 0:02:45.3]} 14... Nb4 {[%clk 0:02:13.2]} 15. Qb1 {[%clk 0:02:45]}
15... Qb8 {[%clk 0:02:11.3]} 16. a3 {[%clk 0:02:41.7]} 16... Na6 {[%clk
0:02:11.1]} 17. d5 {[%clk 0:02:35.6]} 17... exd5 {[%clk 0:02:01.1]} 18. exd5
{[%clk 0:02:30.1]} 18... Bxd5 {[%clk 0:02:00.4]} 19. Nc4 {[%clk 0:02:29.8]}
19... Nc7 {[%clk 0:01:39.4]} 20. Rxd5 {[%clk 0:02:02.3]} 20... Nxd5 {[%clk
0:01:38.4]} 21. Qe4 {[%clk 0:02:02.8]} 21... N7f6 {[%clk 0:01:34.3]} 22. Bxf6
{[%clk 0:01:59.5]} 22... Bxf6 {[%clk 0:01:28.9]} 23. Qxd5 {[%clk 0:01:59.5]}
23... Rcd8 {[%clk 0:01:29.3]} 24. Qf5 {[%clk 0:01:56.4]} 24... Rfe8 {[%clk
0:01:26]} 25. h4 {[%clk 0:01:52.2]} 25... h6 {[%clk 0:01:24.7]} 26. a4 {[%clk
0:01:39.8]} 26... Re7 {[%clk 0:01:09.5]} 27. Qc2 {[%clk 0:01:23.7]} 27... Qc7
{[%clk 0:01:03.2]} 28. Ne3 {[%clk 0:01:17.6]} 28... Rxe3 {[%clk 0:00:57.8]} 29.
fxe3 {[%clk 0:01:17.8]} 29... Qxg3 {[%clk 0:00:58.1]} 30. Qf2 {[%clk 0:01:16.9]}
30... Qg4 {[%clk 0:00:54.7]} 31. Rc4 {[%clk 0:01:04.1]} 31... Rd1+ {[%clk
0:00:52.1]} 32. Kh2 {[%clk 0:01:04.1]} 32... Qe6 {[%clk 0:00:38.8]} 33. Qc2
{[%clk 0:00:30.9]} 33... Be5+ {[%clk 0:00:25.5]} 34. Nxe5 {[%clk 0:00:30.9]}
34... Qxe5+ {[%clk 0:00:25.9]} 35. Rf4 {[%clk 0:00:31.2]} 35... Qxe3 {[%clk
0:00:25.5]} 36. Re4 {[%clk 0:00:21.3]} 36... Qg1+ {[%clk 0:00:22.9]} 37. Kh3
{[%clk 0:00:20.5]} 37... Rd8 {[%clk 0:00:20]} 38. Qe2 {[%clk 0:00:19]} 38... g6
{[%clk 0:00:13]} 39. Qf3 {[%clk 0:00:16.9]} 39... Qc1 {[%clk 0:00:11.4]} 40. Re7
{[%clk 0:00:16.4]} 40... Rf8 {[%clk 0:00:10.8]} 41. Qf6 {[%clk 0:00:12.1]} 41...
Qd2 {[%clk 0:00:09.8]} 42. Bf1 {[%clk 0:00:07]} 42... Qd5 {[%clk 0:00:08.9]} 43.
Bc4 {[%clk 0:00:06.5]} 43... Qh1+ {[%clk 0:00:08.7]} 44. Kg3 {[%clk 0:00:06.9]}
44... Qg1+ {[%clk 0:00:09.1]} 45. Kf3 {[%clk 0:00:07.4]} 45... Qh1+ {[%clk
0:00:08.3]} 46. Ke2 {[%clk 0:00:07.5]} 46... Qg2+ {[%clk 0:00:07.7]} 47. Ke1
{[%clk 0:00:07.6]} 47... Qg1+ {[%clk 0:00:06.5]} 48. Ke2 {[%clk 0:00:07.6]}
48... Qg2+ {[%clk 0:00:06.3]} 49. Ke3 {[%clk 0:00:08]} 49... Qg3+ {[%clk
0:00:06.6]} 50. Kd2 {[%clk 0:00:02.4]} 50... Rd8+ {[%clk 0:00:05.4]} 51. Kc2
{[%clk 0:00:03]} 51... Qg2+ {[%clk 0:00:04.3]} 52. Re2 {[%clk 0:00:03.2]} 1-0

[Event "*** Titled Tuesday Blitz"]
[Site "Chess.com"]
[Date "2020.04.14"]
[Round "3"]
[White "Carnivoras"]
[Black "kingandqueen2017"]
[Result "1-0"]
[WhiteElo "2646"]
[BlackElo "2303"]
[TimeControl "180+1"]
[EndTime "10:29:28 PDT"]
[Termination "Carnivoras won by checkmate"]

1. d4 {[%clk 0:03:00.9]} 1... Nf6 {[%clk 0:02:59.3]} 2. Nf3 {[%clk 0:02:59.8]}
2... d5 {[%clk 0:02:59]} 3. Bg5 {[%clk 0:02:59.2]} 3... Ne4 {[%clk 0:02:58.6]}
4. Bh4 {[%clk 0:02:58.5]} 4... c5 {[%clk 0:02:57.3]} 5. c3 {[%clk 0:02:56.3]}
5... Nc6 {[%clk 0:02:56.8]} 6. e3 {[%clk 0:02:56]} 6... Qb6 {[%clk 0:02:54.6]}
7. Qc1 {[%clk 0:02:46.4]} 7... Bf5 {[%clk 0:02:51]} 8. Nbd2 {[%clk 0:02:45.2]}
8... e6 {[%clk 0:02:49.7]} 9. Be2 {[%clk 0:02:43.5]} 9... Be7 {[%clk 0:02:45.6]}
10. Bxe7 {[%clk 0:02:41.2]} 10... Nxe7 {[%clk 0:02:44.9]} 11. O-O {[%clk
0:02:40.7]} 11... O-O {[%clk 0:02:41.8]} 12. Nxe4 {[%clk 0:02:38.8]} 12... Bxe4
{[%clk 0:02:41.3]} 13. Nd2 {[%clk 0:02:39.1]} 13... Bg6 {[%clk 0:02:40.5]} 14.
dxc5 {[%clk 0:02:28.6]} 14... Qxc5 {[%clk 0:02:40.2]} 15. b4 {[%clk 0:02:28.9]}
15... Qb6 {[%clk 0:02:38]} 16. Qb2 {[%clk 0:02:26.9]} 16... a5 {[%clk
0:02:35.3]} 17. b5 {[%clk 0:02:24.3]} 17... Rac8 {[%clk 0:02:31.8]} 18. c4
{[%clk 0:02:23.7]} 18... Rfd8 {[%clk 0:02:31.6]} 19. Rac1 {[%clk 0:02:18.9]}
19... h6 {[%clk 0:02:14.7]} 20. cxd5 {[%clk 0:01:29.3]} 20... exd5 {[%clk
0:02:11.9]} 21. Nf3 {[%clk 0:01:24.6]} 21... Bh5 {[%clk 0:01:57.1]} 22. Nd4
{[%clk 0:01:23.1]} 22... Bxe2 {[%clk 0:01:56.3]} 23. Qxe2 {[%clk 0:01:22.4]}
23... Rxc1 {[%clk 0:01:53.9]} 24. Rxc1 {[%clk 0:01:21.5]} 24... Rc8 {[%clk
0:01:54.1]} 25. Rxc8+ {[%clk 0:01:21.2]} 25... Nxc8 {[%clk 0:01:54.1]} 26. h3
{[%clk 0:01:21.4]} 26... Qc5 {[%clk 0:01:52.6]} 27. Qg4 {[%clk 0:01:20.6]} 27...
Nd6 {[%clk 0:01:50.5]} 28. Kh2 {[%clk 0:01:14.1]} 28... g6 {[%clk 0:01:39.6]}
29. Qd7 {[%clk 0:01:02.7]} 29... a4 {[%clk 0:01:28.1]} 30. Qd8+ {[%clk 0:00:52]}
30... Kh7 {[%clk 0:01:21.3]} 31. Qe7 {[%clk 0:00:48]} 31... Qb4 {[%clk
0:01:00.1]} 32. Qf6 {[%clk 0:00:39.8]} 32... a3 {[%clk 0:00:53.3]} 33. Qe7
{[%clk 0:00:33.8]} 33... Qc5 {[%clk 0:00:48.7]} 34. Ne6 {[%clk 0:00:25.1]} 34...
Qb4 {[%clk 0:00:42.5]} 35. Nd8 {[%clk 0:00:23.3]} 35... Qc5 {[%clk 0:00:24.4]}
36. Nxf7 {[%clk 0:00:20.4]} 36... Ne4 {[%clk 0:00:23.2]} 37. Qe8 {[%clk
0:00:18.4]} 37... Kg7 {[%clk 0:00:19]} 38. Nd8 {[%clk 0:00:14.7]} 38... Qd6+
{[%clk 0:00:16.3]} 39. Kg1 {[%clk 0:00:12.9]} 39... Qf6 {[%clk 0:00:08.4]} 40.
Ne6+ {[%clk 0:00:11.7]} 40... Kh7 {[%clk 0:00:08.5]} 41. Nf8+ {[%clk 0:00:11.9]}
41... Kg7 {[%clk 0:00:07.5]} 42. Ne6+ {[%clk 0:00:12.1]} 42... Kh7 {[%clk
0:00:07.7]} 43. Qd7+ {[%clk 0:00:12]} 43... Kg8 {[%clk 0:00:07.3]} 44. Nf4
{[%clk 0:00:12.2]} 44... g5 {[%clk 0:00:06.2]} 45. Qxd5+ {[%clk 0:00:11.6]}
45... Kg7 {[%clk 0:00:05.8]} 46. Qxb7+ {[%clk 0:00:11.4]} 46... Qf7 {[%clk
0:00:03.8]} 47. Qxf7+ {[%clk 0:00:10]} 47... Kxf7 {[%clk 0:00:04.7]} 48. Ne2
{[%clk 0:00:09.8]} 48... Ke6 {[%clk 0:00:04]} 49. Nd4+ {[%clk 0:00:09.2]} 49...
Kd5 {[%clk 0:00:04.3]} 50. Nc2 {[%clk 0:00:10.1]} 50... Nc3 {[%clk 0:00:03.8]}
51. Nxa3 {[%clk 0:00:10.1]} 51... Nxa2 {[%clk 0:00:04.5]} 52. Nc2 {[%clk
0:00:10.2]} 52... Nc3 {[%clk 0:00:04.4]} 53. Nd4 {[%clk 0:00:11.1]} 53... Ke4
{[%clk 0:00:04.6]} 54. b6 {[%clk 0:00:10.5]} 54... Nd5 {[%clk 0:00:04.1]} 55. b7
{[%clk 0:00:10.7]} 55... Nxe3 {[%clk 0:00:04.5]} 56. fxe3 {[%clk 0:00:10.7]}
56... Kxe3 {[%clk 0:00:04.9]} 57. Nf5+ {[%clk 0:00:11.3]} 57... Kf4 {[%clk
0:00:04.9]} 58. Nxh6 {[%clk 0:00:12.2]} 58... Ke5 {[%clk 0:00:05.1]} 59. Ng4+
{[%clk 0:00:13.1]} 59... Kf4 {[%clk 0:00:05.3]} 60. b8=Q+ {[%clk 0:00:14]} 60...
Ke4 {[%clk 0:00:05.4]} 61. Qe5+ {[%clk 0:00:13.8]} 61... Kd3 {[%clk 0:00:05.6]}
62. Nf2+ {[%clk 0:00:14]} 62... Kc2 {[%clk 0:00:05.7]} 63. Qd4 {[%clk
0:00:14.1]} 63... Kb3 {[%clk 0:00:05.9]} 64. Qc5 {[%clk 0:00:14.2]} 64... Ka2
{[%clk 0:00:06.5]} 65. Nd3 {[%clk 0:00:14.2]} 65... Kb3 {[%clk 0:00:07.1]} 66.
Qc1 {[%clk 0:00:12.8]} 66... Ka2 {[%clk 0:00:07.3]} 67. Qb2# {[%clk 0:00:12.6]}
1-0

[Event "*** Titled Tuesday Blitz"]
[Site "Chess.com"]
[Date "2020.04.14"]
[Round "3"]
[White "LionTheLeon_06"]
[Black "2L8IWUN"]
[Result "1-0"]
[WhiteElo "2670"]
[BlackElo "2334"]
[TimeControl "180+1"]
[EndTime "10:29:29 PDT"]
[Termination "LionTheLeon_06 won by resignation"]

1. d4 {[%clk 0:03:00.9]} 1... Nf6 {[%clk 0:02:54.2]} 2. c4 {[%clk 0:03:00.8]}
2... e6 {[%clk 0:02:54]} 3. Nc3 {[%clk 0:03:00.8]} 3... d5 {[%clk 0:02:54.9]} 4.
Nf3 {[%clk 0:02:59.5]} 4... Nbd7 {[%clk 0:02:53.5]} 5. Bg5 {[%clk 0:02:58.8]}
5... h6 {[%clk 0:02:52.4]} 6. Bh4 {[%clk 0:02:58.3]} 6... Be7 {[%clk 0:02:53.1]}
7. e3 {[%clk 0:02:58.1]} 7... O-O {[%clk 0:02:53.8]} 8. Be2 {[%clk 0:02:54.9]}
8... c5 {[%clk 0:02:53.9]} 9. cxd5 {[%clk 0:02:53.9]} 9... Nxd5 {[%clk
0:02:54.3]} 10. Bxe7 {[%clk 0:02:52.2]} 10... Nxe7 {[%clk 0:02:52.2]} 11. O-O
{[%clk 0:02:51.2]} 11... b6 {[%clk 0:02:52.7]} 12. dxc5 {[%clk 0:02:48.1]} 12...
Nxc5 {[%clk 0:02:51.6]} 13. b4 {[%clk 0:02:47.9]} 13... Nd7 {[%clk 0:02:44.6]}
14. Qb3 {[%clk 0:02:46.4]} 14... Bb7 {[%clk 0:02:43.6]} 15. Rfd1 {[%clk
0:02:45.5]} 15... Nd5 {[%clk 0:02:02.4]} 16. Nb5 {[%clk 0:02:40.5]} 16... Qe7
{[%clk 0:01:59.7]} 17. a3 {[%clk 0:02:26.4]} 17... a6 {[%clk 0:01:52.9]} 18.
Nbd4 {[%clk 0:02:23.9]} 18... N7f6 {[%clk 0:01:50]} 19. Rac1 {[%clk 0:02:17.6]}
19... Rfc8 {[%clk 0:01:49.5]} 20. Ne5 {[%clk 0:02:16.6]} 20... Rxc1 {[%clk
0:01:39.6]} 21. Rxc1 {[%clk 0:02:16.4]} 21... Rc8 {[%clk 0:01:35.9]} 22. Rxc8+
{[%clk 0:02:12.8]} 22... Bxc8 {[%clk 0:01:36.8]} 23. Qc2 {[%clk 0:01:58.4]}
23... Bb7 {[%clk 0:01:35]} 24. Bf3 {[%clk 0:01:52.1]} 24... Qd8 {[%clk
0:01:21.6]} 25. h3 {[%clk 0:01:47.2]} 25... Qc8 {[%clk 0:01:19]} 26. Ndc6 {[%clk
0:01:37.5]} 26... Qc7 {[%clk 0:01:15.2]} 27. g3 {[%clk 0:01:18]} 27... Ne7
{[%clk 0:01:05.3]} 28. Nxe7+ {[%clk 0:01:12.4]} 28... Qxe7 {[%clk 0:01:06.2]}
29. Bxb7 {[%clk 0:01:09.7]} 29... Qxb7 {[%clk 0:01:07.1]} 30. Nc6 {[%clk
0:01:10.1]} 30... Nd5 {[%clk 0:00:58.6]} 31. e4 {[%clk 0:01:06.1]} 31... Ne7
{[%clk 0:00:55.8]} 32. Ne5 {[%clk 0:01:02.3]} 32... f6 {[%clk 0:00:52.4]} 33.
Nf3 {[%clk 0:00:58.4]} 33... Qc6 {[%clk 0:00:52.7]} 34. Qd3 {[%clk 0:00:57.5]}
34... Kf7 {[%clk 0:00:48.7]} 35. h4 {[%clk 0:00:55.6]} 35... a5 {[%clk
0:00:45.5]} 36. bxa5 {[%clk 0:00:48.6]} 36... bxa5 {[%clk 0:00:46.4]} 37. Nd4
{[%clk 0:00:42.6]} 37... Qc1+ {[%clk 0:00:42]} 38. Kg2 {[%clk 0:00:41.5]} 38...
Nc6 {[%clk 0:00:42.4]} 39. Nb5 {[%clk 0:00:38.4]} 39... Qc5 {[%clk 0:00:39.2]}
40. Nd6+ {[%clk 0:00:33.3]} 40... Kg8 {[%clk 0:00:34.6]} 41. Nc8 {[%clk
0:00:29.5]} 41... Qd4 {[%clk 0:00:29.2]} 42. Qc2 {[%clk 0:00:26.6]} 42... Ne5
{[%clk 0:00:25.1]} 43. h5 {[%clk 0:00:26.7]} 43... f5 {[%clk 0:00:20.6]} 44.
Ne7+ {[%clk 0:00:26.2]} 44... Kf7 {[%clk 0:00:17.8]} 45. Ng6 {[%clk 0:00:24.2]}
45... Nxg6 {[%clk 0:00:17.5]} 46. hxg6+ {[%clk 0:00:23]} 46... Kxg6 {[%clk
0:00:18.3]} 47. exf5+ {[%clk 0:00:23.5]} 47... exf5 {[%clk 0:00:15.2]} 48. Qc6+
{[%clk 0:00:24.2]} 48... Kf7 {[%clk 0:00:12.5]} 49. Qc7+ {[%clk 0:00:23.6]}
49... Kg6 {[%clk 0:00:11.2]} 50. Qxa5 {[%clk 0:00:24.1]} 50... Qe4+ {[%clk
0:00:11.6]} 51. Kg1 {[%clk 0:00:24.5]} 51... Qb1+ {[%clk 0:00:10.7]} 52. Kh2
{[%clk 0:00:24.3]} 52... Qc2 {[%clk 0:00:09.9]} 53. Qb6+ {[%clk 0:00:24.4]}
53... Kg5 {[%clk 0:00:09.7]} 54. Qe3+ {[%clk 0:00:23.6]} 54... Kg6 {[%clk
0:00:09.7]} 55. Qf4 {[%clk 0:00:23.5]} 55... Qc5 {[%clk 0:00:08.6]} 56. a4
{[%clk 0:00:23.4]} 56... Qd5 {[%clk 0:00:07.7]} 57. Qc7 {[%clk 0:00:22]} 57...
Qf3 {[%clk 0:00:06.8]} 58. Qb6+ {[%clk 0:00:22]} 58... Kh7 {[%clk 0:00:06.8]}
59. Qd4 {[%clk 0:00:21.7]} 59... h5 {[%clk 0:00:06.4]} 60. a5 {[%clk 0:00:21.9]}
60... Qc6 {[%clk 0:00:04.7]} 61. Qb6 {[%clk 0:00:20.8]} 61... Qf3 {[%clk
0:00:02.5]} 62. a6 {[%clk 0:00:21]} 62... h4 {[%clk 0:00:03]} 63. gxh4 {[%clk
0:00:20.3]} 63... Qg4 {[%clk 0:00:02.5]} 64. Qe3 {[%clk 0:00:19.1]} 64... Qxh4+
{[%clk 0:00:02.7]} 65. Qh3 {[%clk 0:00:19.3]} 65... Qxh3+ {[%clk 0:00:03.3]} 66.
Kxh3 {[%clk 0:00:20.2]} 1-0

[Event "*** Titled Tuesday Blitz"]
[Site "Chess.com"]
[Date "2020.04.14"]
[Round "3"]
[White "mbojan"]
[Black "mc4chess"]
[Result "1-0"]
[WhiteElo "2590"]
[BlackElo "2366"]
[TimeControl "180+1"]
[EndTime "10:29:30 PDT"]
[Termination "mbojan won by checkmate"]

1. e4 {[%clk 0:03:00.9]} 1... c5 {[%clk 0:02:59.2]} 2. Nf3 {[%clk 0:02:59.7]}
2... e6 {[%clk 0:02:59.2]} 3. d4 {[%clk 0:02:58]} 3... cxd4 {[%clk 0:03:00.1]}
4. Nxd4 {[%clk 0:02:58.8]} 4... a6 {[%clk 0:03:00.7]} 5. c4 {[%clk 0:02:58.5]}
5... Nf6 {[%clk 0:02:59.4]} 6. Nc3 {[%clk 0:02:58.6]} 6... Qc7 {[%clk
0:02:59.4]} 7. Be2 {[%clk 0:02:58.2]} 7... Nc6 {[%clk 0:02:58.9]} 8. O-O {[%clk
0:02:50.8]} 8... Be7 {[%clk 0:02:58.1]} 9. Nxc6 {[%clk 0:02:48]} 9... dxc6
{[%clk 0:02:58]} 10. Be3 {[%clk 0:02:44.6]} 10... e5 {[%clk 0:02:56.3]} 11. c5
{[%clk 0:02:43.4]} 11... O-O {[%clk 0:02:54.8]} 12. f3 {[%clk 0:02:43.2]} 12...
Be6 {[%clk 0:02:54.9]} 13. Qc2 {[%clk 0:02:40.5]} 13... Rad8 {[%clk 0:02:52.6]}
14. Rfd1 {[%clk 0:02:37.8]} 14... Qa5 {[%clk 0:02:52.6]} 15. Na4 {[%clk
0:02:31.7]} 15... Nd7 {[%clk 0:02:44.5]} 16. b3 {[%clk 0:02:28.5]} 16... h6
{[%clk 0:02:11.7]} 17. Rd2 {[%clk 0:02:20.6]} 17... Nf6 {[%clk 0:01:54.6]} 18.
Rad1 {[%clk 0:02:16.1]} 18... Rxd2 {[%clk 0:01:54.6]} 19. Qxd2 {[%clk
0:02:14.2]} 19... Qxd2 {[%clk 0:01:54.4]} 20. Rxd2 {[%clk 0:02:15.1]} 20... Rd8
{[%clk 0:01:55.3]} 21. Rxd8+ {[%clk 0:02:10.2]} 21... Bxd8 {[%clk 0:01:56.2]}
22. Kf2 {[%clk 0:02:10.2]} 22... Kf8 {[%clk 0:01:55.6]} 23. Ke1 {[%clk
0:02:09.6]} 23... Ke7 {[%clk 0:01:56.1]} 24. Kd2 {[%clk 0:02:09.4]} 24... Ba5+
{[%clk 0:01:54.3]} 25. Kc2 {[%clk 0:02:06.9]} 25... Nd7 {[%clk 0:01:54.1]} 26.
a3 {[%clk 0:02:02.5]} 26... Bc7 {[%clk 0:01:50.3]} 27. Nb2 {[%clk 0:01:55.3]}
27... f5 {[%clk 0:01:49.9]} 28. Bc4 {[%clk 0:01:51.5]} 28... fxe4 {[%clk
0:01:49.5]} 29. Bxe6 {[%clk 0:01:49.2]} 29... Kxe6 {[%clk 0:01:48.3]} 30. fxe4
{[%clk 0:01:49.4]} 30... Nf6 {[%clk 0:01:48.9]} 31. Kd3 {[%clk 0:01:48.2]} 31...
Ng4 {[%clk 0:01:43.7]} 32. Bg1 {[%clk 0:01:47.9]} 32... Bd8 {[%clk 0:01:37.7]}
33. h3 {[%clk 0:01:45.5]} 33... Nf6 {[%clk 0:01:37.8]} 34. Nc4 {[%clk
0:01:44.7]} 34... Nh5 {[%clk 0:01:36.9]} 35. Be3 {[%clk 0:01:30.9]} 35... Bc7
{[%clk 0:01:36.9]} 36. b4 {[%clk 0:01:27.8]} 36... Nf4+ {[%clk 0:01:24.8]} 37.
Bxf4 {[%clk 0:01:27.3]} 37... exf4 {[%clk 0:01:25.7]} 38. Ke2 {[%clk 0:01:25.2]}
38... h5 {[%clk 0:01:25.3]} 39. h4 {[%clk 0:01:12.6]} 39... Bd8 {[%clk
0:01:14.6]} 40. Kf3 {[%clk 0:01:03.2]} 40... Bxh4 {[%clk 0:01:14.3]} 41. Kxf4
{[%clk 0:01:02.8]} 41... Bd8 {[%clk 0:01:13.2]} 42. e5 {[%clk 0:00:58.7]} 42...
g5+ {[%clk 0:01:07.5]} 43. Ke4 {[%clk 0:00:58.1]} 43... g4 {[%clk 0:00:53.5]}
44. Nd6 {[%clk 0:00:52.4]} 44... b6 {[%clk 0:00:51.8]} 45. cxb6 {[%clk
0:00:52.1]} 45... Bxb6 {[%clk 0:00:51.5]} 46. Nf5 {[%clk 0:00:51.1]} 46... c5
{[%clk 0:00:21.3]} 47. Ng7+ {[%clk 0:00:48]} 47... Kf7 {[%clk 0:00:21.1]} 48.
Nxh5 {[%clk 0:00:48.4]} 48... cxb4 {[%clk 0:00:20.5]} 49. axb4 {[%clk
0:00:49.3]} 49... a5 {[%clk 0:00:20.5]} 50. bxa5 {[%clk 0:00:49]} 50... Bxa5
{[%clk 0:00:21.4]} 51. Kf5 {[%clk 0:00:46.1]} 51... Bc7 {[%clk 0:00:20.9]} 52.
g3 {[%clk 0:00:41.5]} 52... Ke7 {[%clk 0:00:20.8]} 53. Nf4 {[%clk 0:00:41.4]}
53... Bb8 {[%clk 0:00:20.3]} 54. Nd5+ {[%clk 0:00:36.9]} 54... Kf7 {[%clk
0:00:19.9]} 55. Ne3 {[%clk 0:00:37.1]} 55... Bc7 {[%clk 0:00:19.1]} 56. Nxg4
{[%clk 0:00:37.2]} 56... Ke7 {[%clk 0:00:19.4]} 57. Nf6 {[%clk 0:00:35.6]} 57...
Ba5 {[%clk 0:00:19.6]} 58. g4 {[%clk 0:00:35.7]} 58... Bd2 {[%clk 0:00:18.6]}
59. g5 {[%clk 0:00:35.8]} 59... Kf7 {[%clk 0:00:18.1]} 60. g6+ {[%clk
0:00:35.8]} 60... Kg7 {[%clk 0:00:18.5]} 61. e6 {[%clk 0:00:36]} 61... Bb4
{[%clk 0:00:18.3]} 62. Nd5 {[%clk 0:00:35.7]} 62... Bd6 {[%clk 0:00:17.2]} 63.
e7 {[%clk 0:00:35.6]} 63... Bxe7 {[%clk 0:00:16]} 64. Nxe7 {[%clk 0:00:36.5]}
64... Kh8 {[%clk 0:00:16.1]} 65. Nc6 {[%clk 0:00:37]} 65... Kg7 {[%clk
0:00:16.2]} 66. Nb4 {[%clk 0:00:37.9]} 66... Kh8 {[%clk 0:00:17.1]} 67. Na2
{[%clk 0:00:38.8]} 67... Kg7 {[%clk 0:00:16.7]} 68. Nc3 {[%clk 0:00:39.7]} 68...
Kh8 {[%clk 0:00:17.6]} 69. Nb1 {[%clk 0:00:40.6]} 69... Kg7 {[%clk 0:00:18.5]}
70. Nd2 {[%clk 0:00:41.5]} 70... Kh8 {[%clk 0:00:19.4]} 71. Nf1 {[%clk
0:00:42.4]} 71... Kg7 {[%clk 0:00:20.3]} 72. Ne3 {[%clk 0:00:43.3]} 72... Kh8
{[%clk 0:00:21.2]} 73. Ng2 {[%clk 0:00:44.2]} 73... Kg7 {[%clk 0:00:22.1]} 74.
Nf4 {[%clk 0:00:45.1]} 74... Kh8 {[%clk 0:00:23]} 75. Nh3 {[%clk 0:00:46]} 75...
Kg7 {[%clk 0:00:23.4]} 76. Nf2 {[%clk 0:00:46.9]} 76... Kh8 {[%clk 0:00:24.3]}
77. Nh1 {[%clk 0:00:47.8]} 77... Kg7 {[%clk 0:00:25.2]} 78. Ng3 {[%clk
0:00:48.7]} 78... Kh8 {[%clk 0:00:25.6]} 79. Kf6 {[%clk 0:00:49.1]} 79... Kg8
{[%clk 0:00:25.2]} 80. Nf5 {[%clk 0:00:47.2]} 80... Kh8 {[%clk 0:00:25.3]} 81.
g7+ {[%clk 0:00:47]} 81... Kg8 {[%clk 0:00:26.2]} 82. Ne7+ {[%clk 0:00:46.7]}
82... Kh7 {[%clk 0:00:27.1]} 83. g8=Q+ {[%clk 0:00:46.6]} 83... Kh6 {[%clk
0:00:28]} 84. Qg6# {[%clk 0:00:34.9]} 1-0